{"text_format":"1","workbook":"xlsx","n_sheets":2,"sheets":["Departmental Supply Requisition","BCC Supply Price List"],"not_rendered":{"charts":0,"images":1,"macros":1,"external_links":0,"defined_names":2,"comments":0,"pivot_tables":0},"unopened":[],"bounds":{"document_bytes":16777216,"sheet_cells":100000,"rows_first":2000,"rows_last":500,"rows_between":2000,"halvings":0,"cell_chars":16384,"cell_head_chars":4096},"cells_cut":0,"cells_raw":0,"read":"whole","date_system":"1900"}

{"sheet":"Departmental Supply Requisition","index":0,"n_rows":31,"n_cols":25,"rows_kept":31,"cut":false,"hidden":false,"merged":[[23,10,23,11],[26,2,26,15],[5,1,6,1],[2,1,3,1],[5,13,5,19],[3,13,3,15],[8,18,8,19],[5,3,5,6],[6,2,6,6],[5,11,5,12],[7,2,7,19],[1,2,1,23],[25,12,25,15],[27,4,27,5],[27,11,27,13],[3,3,3,10],[8,2,8,3],[8,10,8,11],[27,20,27,21],[9,18,9,19],[26,18,26,23],[25,20,25,23],[3,20,3,23],[4,2,4,23],[6,13,6,19],[10,18,10,19],[7,20,7,23]]}
[]
[null,null,"Bronx Community College                                                                                                                                                                 Supply Requisition"]
[]
[null,null,"Department:",null,null,null,null,null,null,null,null,"Dept. #",null,"Tele:",null,null,null,null,null,"Date:"]
[]
[null,null,"Deliver to:",null,null,null,null,null,null,null,null,"Requested by:"]
[null,null,"                (Building/Room)",null,null,null,null,null,null,null,null,null,null,"Department Head/Designee"]
[null,null,"NOTE: ITEMS NOT LISTED CAN BE OBTAINED FROM THE STAPLE'S VIRTUAL STOCKROOM    ",null,null,null,null,null,null,null,null,null,null,null,null,null,null,null,null,null,"Save the file before you submit "]
[null,null,"Description",null,"Unit      of   Issue","Requested","Requested","Issued","Issued",null,"Description",null,"Unit       of   Issue","Requested","Requested","Issued","Issued",null,"Description",null,"Unit      of    Issue","Requested","Requested","Issued","Issued"]
[1,{"$f":"'BCC Supply Price List'!C5","v":2.33},"Binder Indexes",null,"Ea.",null,{"$f":"B10*F10","v":0},null,{"$f":"B10*H10","v":0},{"$f":"'BCC Supply Price List'!C19","v":6.25},"Envelope, #10, Green",null,"Bx.",null,{"$f":"J10*N10","v":0},null,{"$f":"J10*P10","v":0},{"$f":"'BCC Supply Price List'!C33","v":7.59},"File Folder, Legal, 1/3 Cut",null,"Bx.",null,{"$f":"R10*V10","v":0},null,{"$f":"R10*X10","v":0}]
[2,{"$f":"'BCC Supply Price List'!C6","v":2.5299999999999998},"Binder, 3-Ring, 3\"",null,"Ea.",null,0,null,{"$f":"B11*H11","v":0},{"$f":"'BCC Supply Price List'!C20","v":6.25},"Envelope, #10, Logo Only",null,"Bx.",null,{"$f":"J11*N11","v":0},null,{"$f":"J11*P11","v":0},{"$f":"'BCC Supply Price List'!C34","v":7.59},"File Folder, Legal, Str Cut",null,"Bx.",null,{"$f":"R11*V11","v":0},null,{"$f":"R11*X11","v":0}]
[3,{"$f":"'BCC Supply Price List'!C7","v":0.55000000000000004},"Blotter Refill 19x24",null,"Ea.",null,0,null,0,{"$f":"'BCC Supply Price List'!C21","v":6.81},"Envelope, #10, Plain",null,"Bx.",null,{"$f":"J12*N12","v":0},null,{"$f":"J12*P12","v":0},{"$f":"'BCC Supply Price List'!C35","v":3.34},"Final Examination Booklets",null,"Pk.",null,{"$f":"R12*V12","v":0},null,{"$f":"R12*X12","v":0}]
[4,{"$f":"'BCC Supply Price List'!C8","v":0.71},"Blotter Refill 24x38",null,"Ea.",null,0,null,0,{"$f":"'BCC Supply Price List'!C22","v":8.6999999999999993},"Envelope, #10, Window",null,"Bx.",null,{"$f":"J13*N13","v":0},null,{"$f":"J13*P13","v":0},{"$f":"'BCC Supply Price List'!C36","v":3.99},"Folder, Pendaflex, Letter",null,"Bx.",null,{"$f":"R13*V13","v":0},null,{"$f":"R13*X13","v":0}]
[5,{"$f":"'BCC Supply Price List'!C9","v":7.83},"Blotter, Pad, 19x24",null,"Ea.",null,0,null,0,{"$f":"'BCC Supply Price List'!C23","v":7.0000000000000007E-2},"Envelope, Bcc 11.5 X14.5",null,"Ea.",null,{"$f":"J14*N14","v":0},null,0,{"$f":"'BCC Supply Price List'!C37","v":0.71},"Masking Tape, 3/4\"",null,"Ea.",null,{"$f":"R14*V14","v":0},null,{"$f":"R14*X14","v":0}]
[6,{"$f":"'BCC Supply Price List'!C10","v":7.87},"Blotter, Pad, 24x38",null,"Ea.",null,0,null,0,{"$f":"'BCC Supply Price List'!C24","v":7.0000000000000007E-2},"Envelope, Bcc, 10x13",null,"Ea.",null,{"$f":"J15*N15","v":0},null,0,{"$f":"'BCC Supply Price List'!C38","v":4.5},"Paper, Bond Copier, Legal",null,"Rm",null,{"$f":"R15*V15","v":0},null,{"$f":"R15*X15","v":0}]
[7,{"$f":"'BCC Supply Price List'!C11","v":0.88},"Card Guides, 3x5",null,"Pk.",null,0,null,0,{"$f":"'BCC Supply Price List'!C25","v":0.05},"Envelope, Bcc, 6x9",null,"Ea.",null,0,null,0,{"$f":"'BCC Supply Price List'!C39","v":33.43},"Paper, Bond Copier, Letter",null,"Ctn.",null,0,null,0]
[8,{"$f":"'BCC Supply Price List'!C12","v":1.86},"Card Guides, 5x8",null,"Pk.",null,0,null,0,{"$f":"'BCC Supply Price List'!C26","v":0.05},"Envelope, Bcc, 7x10",null,"Ea.",null,0,null,0,{"$f":"'BCC Supply Price List'!C40","v":0.15},"Push Pins",null,"Ea.",null,0,null,0]
[9,{"$f":"'BCC Supply Price List'!C13","v":0.17},"Card, Index, Plain 3x5",null,"Pk.",null,0,null,0,{"$f":"'BCC Supply Price List'!C27","v":0.06},"Envelope, Bcc, 9x12",null,"Ea.",null,0,null,0,{"$f":"'BCC Supply Price List'!C41","v":1.1000000000000001},"Staple Remover",null,"Ea.",null,0,null,0]
[10,{"$f":"'BCC Supply Price List'!C14","v":0.33},"Card, Index, Plain 4x6",null,"Pk.",null,0,null,0,{"$f":"'BCC Supply Price List'!C28","v":0.05},"Envelope, Conflict Exam",null,"Ea.",null,0,null,0,{"$f":"'BCC Supply Price List'!C42","v":0.41},"Staples, Standard",null,"Ea.",null,0,null,0]
[11,{"$f":"'BCC Supply Price List'!C15","v":0.46},"Card, Index, Plain 5x8",null,"Pk.",null,0,null,0,{"$f":"'BCC Supply Price List'!C29","v":7.0000000000000007E-2},"Envelope, Final Exam",null,"Ea.",null,0,null,0,{"$f":"'BCC Supply Price List'!C43","v":0.21},"Tape Dispenser, 3/4\"",null,"Ea.",null,0,null,0]
[13,{"$f":"'BCC Supply Price List'!C16","v":0.46},"Card, Index, Ruled 5x8",null,"Pk.",null,0,null,0,{"$f":"'BCC Supply Price List'!C30","v":0.03},"Envelope, Interoffice",null,"Ea.",null,0,null,0,{"$f":"'BCC Supply Price List'!C44","v":2.94},"Retention Box,Letter",null,"Ea.",null,0,null,0]
[14,{"$f":"'BCC Supply Price List'!C17","v":0.41},"Chalk, Colored",null,"Bx",null,0,null,0,{"$f":"'BCC Supply Price List'!C31","v":0.39},"Envelope, Routing, W/String",null,"Ea.",null,0,null,0,{"$f":"'BCC Supply Price List'!C45","v":0.37},"Retention Box, Legal",null,"Ea.",null,0,null,0]
[15,{"$f":"'BCC Supply Price List'!C18","v":0.47},"Chalk, White",null,"Bx",null,0,null,0,{"$f":"'BCC Supply Price List'!C32","v":0.9},"Eraser, Blackboard",null,"Ea.",null,0,null,0]
[17,null,null,null,null,null,{"$f":"SUM(G10:G23)","v":0},null,{"$f":"SUM(I10:I23)","v":0},null,null,null,null,null,null,null,null,null,null,null,null,null,{"$f":"SUM(W10:W23)","v":0},null,{"$f":"SUM(Y10:Y23)","v":0}]
[null,null,null,null,null,null,null,null,null,null,null,null,null,null,{"$f":"SUM(O10:O24)","v":0},null,{"$f":"SUM(Q10:Q24)","v":0}]
[null,null,"Signature:",null,null,null,null,null,null,null,null,"Date:",null,null,null,null,null,null,null,"Sub Total:",{"$f":"SUM(G24,O25,W24)","v":0},null,null,null,{"$f":"U26-U28","v":0}]
[18,null,"To be signed and dated by the person accepting the above supplies on behalf of the Department"]
[19,null,"Received:",null,null,null,null,null,null,null,"Filled by:",null,null,null,null,"Order #:",null,null,null,"Total:",{"$f":"SUM(Y24,Q25,I24)","v":0}]
[20,null,null,null,null,null,null,null,null,null,null,null,null,null,null,null,null,null,null,null,null,null,null,"Property of                                                                                                  BCC Receiving and Stores                                                     Updated 11/2016"]
[21]
[22]

{"sheet":"BCC Supply Price List","index":1,"n_rows":45,"n_cols":21,"rows_kept":45,"cut":false,"hidden":true,"merged":[[0,0,3,2]]}
["Bronx Community College                                                                                                                                                       Departmental Office Supply Requisition                                                                                                    Price List"]
[]
[]
[]
[1024,"Binder Indexes,",2.33,null,2,null,1]
[1002,"Binder, 3-Ring, 3\"",2.5299999999999998,null,5,null,4]
[1003,"Blotter Refill 19x24",0.55000000000000004,null,6,null,5]
[1004,"Blotter Refill 24x38",0.71,null,7,null,6]
[1005,"Blotter, Pad, 19x24",7.83,null,8,null,7]
[1006,"Blotter, Pad, 24x38",7.87,null,9,null,8]
[1008,"Card Guides, 3x5",0.88,null,10,null,9]
[1009,"Card Guides, 5x8",1.86,null,11,null,10]
[1010,"Card, Index, Plain 3x5",0.17,null,12,null,11]
[1011,"Card, Index, Plain 4x6",0.33,null,13,null,12]
[1012,"Card, Index, Plain 5x8",0.46,null,14,null,13]
[1015,"Card, Index, Ruled 5x8",0.46,null,16,null,15]
[1016,"Chalk, Colored",0.41,null,17,null,16]
[1017,"Chalk, White",0.47,null,18,null,17]
[1034,"Envelope, #10, Green",6.25,null,21,null,20]
[1034,"Envelope, #10, Logo Only",6.25]
[1035,"Envelope, #10, Plain",6.81,null,22,null,21]
[1036,"Envelope, #10, Window",8.6999999999999993,null,23,null,22]
[1151,"Envelope, Bcc 11.5 X14.5",7.0000000000000007E-2,null,24,null,23]
[1039,"Envelope, Bcc, 10x13",7.0000000000000007E-2,null,25,null,24]
[1040,"Envelope, Bcc, 6x9",0.05,null,26,null,25]
[1041,"Envelope, Bcc, 7x10",0.05,null,27,null,26]
[1042,"Envelope, Bcc, 9x12",0.06,null,28,null,27]
[1043,"Envelope, Conflict Exam",0.05,null,29,null,28]
[1044,"Envelope, Final Exam",7.0000000000000007E-2,null,30,null,29]
[1045,"Envelope, Interoffice",0.03,null,31,null,30]
[1046,"Envelope, Routing, W/String",0.39,null,32,null,31]
[1064,"Eraser, Blackboard",0.9,null,50,null,48]
[1051,"File Folder, Legal, 1/3 Cut",7.59,null,34,null,33]
[1052,"File Folder, Legal, Straight Cut",7.59,null,35,null,34]
[1057,"Final Examination Booklets",3.34,null,37,null,36]
[1056,"Folder, Pendaflex, Letter",3.99,null,38,null,37]
[1065,"Masking Tape, 3/4\"",0.71,null,51,null,49]
[1073,"Paper, Bond Copier, Legal",4.5,null,54,null,52,null,null,null,null,null,null,null,null,null,null,null,null,null,{"$f":"2184+1418.75","v":3602.75}]
[1074,"Paper, Bond Copier, Letter",33.43,null,55,null,53]
[1115,"Push Pins",0.15,null,59,null,57]
[1105,"Staple Remover",1.1000000000000001,null,64,null,62]
[1107,"Staples, Standard",0.41,null,65,null,63]
[1111,"Tape Dispenser, 3/4\"",0.21,null,66,null,64]
[1118,"Retention Box, Letter",2.94,null,67,null,65]
[1119,"Retention Box, Legal",0.37,null,67,null,65]